bitfinex/quotes_ETHUSD_20260108
["timestamp","ask_amount","ask_price","bid_price","bid_amount"]
[1767897622588,1.7865321,3121.8,3120.3,0.93243338]
[1767897622784,4.65907546,3121.8,3120.3,0.93243338]
[1767897622984,0.9455321,3121.7,3120.3,0.93243338]
[1767897623191,0.9455321,3121.6,3120.7,0.93243338]
[1767897623482,4.14911734,3121.6,3120.7,4.136812]
[1767897624207,0.9455321,3121.8,3120.8,0.93243338]
[1767897624412,1.7865321,3121.8,3120.8,0.99970011]
[1767897624598,1.7865321,3121.8,3120.9,1.85354469]
[1767897624806,1.7865321,3121.8,3120.6,0.99970011]
[1767897624807,3.82191563,3121.5,3120.6,0.99970011]
[1767897625110,3.82191563,3121.5,3121.0,0.001]
[1767897625724,3.20369065,3121.4,3121.0,0.001]
[1767897626588,4.14916695,3121.5,3121.0,0.001]
[1767897626797,0.73526602,3121.4,3121.0,0.001]
[1767897627340,0.9455321,3121.1,3120.3,0.93243338]
[1767897627539,0.9455321,3121.1,3120.1,3.20496972]
[1767897627737,4.14963334,3121.0,3120.1,4.1374031]
[1767897627914,0.9455321,3120.9,3120.1,5.16602986]
[1767897628233,0.9455321,3120.9,3120.1,1.96106014]
[1767897628618,0.9455321,3120.9,3120.1,0.93243338]
[1767897629737,4.14953069,3121.1,3120.2,4.13735614]
[1767897630034,7.35352928,3121.1,3120.2,0.93243338]
[1767897630240,2.87638353,3120.4,3119.5,0.93243338]
[1767897630438,0.9455321,3120.5,3119.3,0.06726673]
[1767897630439,2.87638353,3120.0,3119.3,0.93243338]
[1767897630638,0.841,3120.5,3119.1,3.2060212]
[1767897630639,2.87638353,3119.9,3119.1,3.2060212]
[1767897630952,0.9455321,3119.6,3118.5,0.06726673]
[1767897631122,0.9455321,3119.6,3118.8,3.2063431]
[1767897631320,0.9455321,3119.6,3118.9,3.5268455]
[1767897631522,2.87638353,3119.7,3118.9,3.5268455]
[1767897631729,0.841,3120.0,3119.3,3.80881691]
[1767897632039,0.841,3120.2,3119.5,2.87638353]
[1767897632244,0.841,3120.2,3118.1,0.93243338]
[1767897632245,0.9455321,3119.6,3118.1,0.93243338]
[1767897632453,0.841,3120.2,3117.7,0.16659895]
[1767897632454,2.87638353,3119.1,3118.3,0.92733474]
[1767897632656,0.841,3119.1,3118.3,0.92733474]
[1767897632825,3.71738353,3119.1,3118.3,0.92733474]
[1767897633447,2.87638353,3118.9,3118.0,4.13451551]
[1767897633648,2.87638353,3118.9,3118.1,0.92733474]
[1767897633856,2.87638353,3118.9,3118.1,4.13440719]
[1767897634017,0.841,3119.0,3118.1,4.86857588]
[1767897634217,2.87638353,3119.5,3118.4,0.92733474]
[1767897634443,0.841,3119.4,3118.4,0.92733474]
[1767897634743,0.9326338,3119.3,3118.1,4.86857588]
[1767897634920,1.10999718,3119.2,3118.1,4.86857981]
[1767897635120,0.9326338,3119.2,3118.1,4.86857981]
[1767897635325,0.9326338,3119.2,3117.6,0.92733474]
[1767897635511,3.53117926,3119.3,3117.5,0.0174758]
[1767897635512,0.9326338,3118.8,3117.5,0.0174758]
[1767897635711,0.9326338,3118.4,3117.5,0.0174758]
[1767897636113,0.9326338,3118.3,3117.5,0.0174758]
[1767897636311,0.9326338,3118.1,3116.8,3.20837929]
[1767897636617,0.73459735,3118.4,3116.4,4.20337373]
[1767897636618,0.841,3118.3,3117.5,6.415303]
[1767897636919,6.41318582,3118.6,3117.5,4.13493927]
[1767897637141,0.841,3118.4,3117.5,0.92733474]
[1767897637339,0.9326338,3118.3,3117.0,3.20813007]
[1767897637545,0.9326338,3118.1,3117.2,3.20797733]
[1767897637847,0.17736338,3118.2,3117.1,6.4162202]
[1767897638048,0.9326338,3118.3,3117.1,7.34355494]
[1767897638275,3.20636142,3118.8,3117.2,0.92733474]
[1767897638448,3.20636142,3118.8,3117.1,9.6243303]
[1767897638449,0.9326338,3118.5,3117.1,9.30166504]
[1767897638756,1.10999718,3118.4,3117.2,0.97892049]
[1767897639118,1.10999718,3118.4,3117.2,1.90625523]
[1767897640357,0.17736338,3118.4,3117.4,0.92733474]
[1767897640543,0.9326338,3118.8,3117.3,6.41580854]
[1767897640861,0.9326338,3118.6,3117.4,0.92733474]
[1767897641023,0.841,3118.7,3117.4,0.99460147]
[1767897641219,0.9326338,3119.1,3117.4,0.99460147]
[1767897641556,1.7736338,3119.1,3117.8,0.99460147]
[1767897641923,0.9326338,3119.0,3117.8,0.99460147]
[1767897642453,0.9326338,3118.9,3117.9,3.20728695]
[1767897642623,0.9326338,3118.9,3117.9,6.4145739]
[1767897643137,0.9326338,3119.2,3117.9,7.34190864]
[1767897643340,0.41385168,3119.1,3118.0,0.42027315]
[1767897643527,0.9326338,3119.1,3118.0,0.42027315]
[1767897644740,0.9326338,3118.9,3118.1,3.20708123]
[1767897644951,0.9326338,3118.9,3118.0,3.62743244]
[1767897645251,0.9326338,3118.9,3117.8,3.20735005]
[1767897645831,0.9326338,3118.9,3118.0,3.20716825]
[1767897646035,0.9326338,3118.9,3118.0,6.41435234]
[1767897646229,1.7736338,3118.9,3118.0,6.41435234]
[1767897646729,4.97990906,3118.9,3117.9,3.20726525]
[1767897646927,0.49799091,3118.8,3117.9,6.4145522]
[1767897647548,0.9326338,3118.9,3117.9,6.4145522]
[1767897647721,0.9326338,3118.9,3117.9,7.34188694]
[1767897651174,0.002,3119.1,3118.2,0.92733474]
[1767897651469,0.002,3119.1,3118.4,0.92733474]
[1767897653055,0.002,3119.1,3118.5,6.41333974]
[1767897653460,0.002,3119.1,3118.5,3.20666987]
[1767897654841,0.002,3119.1,3118.4,3.20675434]
[1767897655046,0.9346338,3119.1,3118.4,3.20675434]
[1767897655778,0.9346338,3119.1,3118.3,3.20687554]
[1767897656065,0.9346338,3119.1,3118.3,6.41375108]
[1767897656248,0.9346338,3119.1,3118.3,7.23868634]
[1767897656430,0.9346338,3119.1,3118.3,8.16602108]
[1767897656431,0.002,3119.1,3118.3,8.16602108]
[1767897658149,0.002,3119.1,3118.8,0.06726673]
[1767897658650,0.002,3119.1,3118.8,0.06605997]
[1767897659071,0.9346338,3119.1,3118.0,3.20714672]
[1767897659269,0.9346338,3119.1,3115.8,1.6826876]
[1767897659270,0.9326338,3118.9,3117.6,0.36976826]
[1767897659459,0.9326338,3118.9,3116.8,3.20837606]
[1767897659460,0.9326338,3118.9,3117.2,0.92733474]
[1767897659654,0.9326338,3118.9,3117.7,3.20745929]
[1767897660585,0.9326338,3118.7,3117.5,3.20768785]
[1767897660875,0.9326338,3118.5,3117.5,7.34272106]
[1767897661381,0.9326338,3118.5,3117.6,0.92733474]
[1767897661681,0.73453566,3118.6,3117.6,0.92733474]
[1767897661882,0.002,3119.1,3117.9,0.92733474]
[1767897661883,0.9326338,3119.0,3117.9,0.92733474]
[1767897662180,0.9326338,3119.0,3118.1,0.92733474]
[1767897662377,0.002,3119.1,3118.4,0.06726673]
[1767897662586,0.002,3119.1,3118.5,6.41333974]
[1767897663450,0.002,3119.1,3118.4,3.27399427]
[1767897664286,0.002,3118.6,3118.4,3.27399427]
[1767897664621,0.9171159,3119.1,3118.4,6.48076697]
[1767897665761,0.9171159,3119.1,3118.4,7.13557034]
[1767897666388,0.002,3119.4,3118.6,0.06726673]
[1767897666572,0.002,3119.4,3118.7,6.41292846]
[1767897666573,0.99253773,3119.3,3118.7,6.41292846]
[1767897668078,0.99253773,3119.3,3118.7,3.20646423]
[1767897668511,0.002,3119.4,3118.7,3.20646423]
[1767897668710,0.002,3119.4,3118.8,0.64802915]
[1767897668921,0.99453773,3119.4,3118.8,0.71529588]
[1767897669290,0.99453773,3119.4,3118.4,0.65480337]
[1767897669291,0.99253773,3119.3,3118.4,0.65480337]
[1767897669607,0.99253773,3119.3,3118.5,3.2066017]
[1767897669810,0.99253773,3119.3,3118.6,3.20654716]
[1767897670310,0.002,3119.4,3118.6,3.20654716]
[1767897670497,0.002,3119.4,3118.6,4.1167189]
[1767897670810,0.002,3119.4,3118.6,4.85578429]
[1767897671109,0.002,3119.4,3118.6,8.06235133]
[1767897672015,0.002,3119.4,3118.7,0.91017174]
[1767897672221,0.002,3119.4,3118.7,0.97743847]
[1767897672400,0.002,3119.4,3119.0,0.91017174]
[1767897672988,0.002,3119.4,3119.1,0.97743847]
[1767897673219,0.002,3119.4,3119.3,0.91017174]
[1767897675097,0.002,3119.4,3118.4,0.97743847]
[1767897675498,0.002,3119.4,3118.6,0.91017174]
[1767897675820,0.002,3119.4,3118.9,3.20624868]
[1767897676032,0.002,3119.4,3119.0,0.91017174]
[1767897676397,0.002,3119.4,3118.7,4.11660239]
[1767897676606,0.002,3119.4,3118.7,0.91017174]
[1767897676825,0.002,3119.4,3118.8,4.11644707]
[1767897677144,0.002,3119.4,3119.0,0.97743847]
[1767897677320,0.002,3119.4,3119.2,0.91017174]
[1767897678407,3.20512572,3120.1,3119.4,0.91017174]
[1767897678820,3.20512572,3120.1,3118.3,0.97743847]
[1767897678821,0.99253773,3119.8,3118.3,0.97743847]
[1767897679130,0.99372167,3119.4,3118.3,0.91017174]
[1767897679302,0.99372167,3119.4,3118.4,0.91017174]
[1767897679502,0.00118394,3119.4,3118.5,0.91017174]
[1767897679698,0.00118394,3119.4,3118.7,0.001]
[1767897680115,0.002,3119.1,3118.7,0.001]
[1767897681327,0.002,3119.1,3118.7,0.91117174]
[1767897683766,0.002,3119.1,3118.7,0.001]
[1767897689260,0.002,3119.1,3118.7,0.91117174]
[1767897689644,0.002,3119.1,3118.7,4.11762525]
[1767897689969,0.002,3119.1,3118.7,0.001]
[1767897693798,0.002,3119.1,3118.8,0.001]
[1767897695094,1.61628693,3119.1,3118.8,0.001]
[1767897695580,0.002,3119.1,3118.8,0.001]
[1767897698493,0.002,3119.4,3119.1,0.97256304]
[1767897698658,3.20524793,3119.9,3119.1,0.97256304]
[1767897699158,3.94358534,3119.9,3119.1,0.97256304]
[1767897699354,7.14883327,3119.9,3119.1,0.97256304]
[1767897699782,3.94358534,3119.9,3119.1,0.97256304]
[1767897699989,3.20524793,3119.9,3119.1,0.97256304]
[1767897700859,3.20524793,3119.9,3119.1,4.17861125]
[1767897701059,4.1780851,3120.0,3119.1,0.97256304]
[1767897702220,7.38325276,3120.0,3119.1,0.97256304]
[1767897703281,0.97291744,3119.9,3119.1,0.97256304]
[1767897703783,0.97291744,3119.9,3118.8,0.001]
[1767897703784,0.97291744,3119.9,3118.9,0.97256304]
[1767897703993,0.97291744,3119.9,3119.0,0.41799194]
[1767897704172,0.97291744,3119.9,3118.9,0.97256304]
[1767897704573,0.97291744,3119.9,3118.8,0.001]
[1767897704772,0.97291744,3119.9,3118.8,0.97356304]
[1767897705190,0.97291744,3119.7,3118.8,0.97356304]
[1767897705396,0.97291744,3119.7,3118.8,1.47567323]
[1767897706217,0.97291744,3119.7,3118.8,4.68203275]
[1767897706727,0.97291744,3119.7,3118.9,0.97256304]
[1767897707231,4.17845661,3119.6,3118.9,0.97256304]
[1767897707386,4.04602547,3120.1,3119.0,0.97256304]
[1767897707723,0.97291744,3120.0,3119.1,0.73949935]
[1767897707895,0.002,3119.4,3119.1,0.73949935]
[1767897708097,0.97491744,3119.4,3118.8,0.001]
[1767897708314,0.97491744,3119.4,3118.2,0.97256304]
[1767897708536,0.002,3119.4,3118.2,0.97256304]
[1767897708736,0.97491744,3119.4,3118.3,0.97256304]
[1767897709227,3.20584746,3119.3,3118.5,0.97256304]
[1767897711704,0.97491744,3119.4,3118.6,0.97256304]
[1767897713130,0.002,3119.4,3118.6,0.97256304]
[1767897713540,0.002,3119.4,3118.7,3.20646423]
[1767897713727,0.002,3119.4,3118.9,0.97256304]
[1767897714441,0.002,3119.4,3118.7,1.03982977]
[1767897714937,0.002,3119.4,3118.6,4.17913008]
[1767897715144,0.002,3119.4,3118.7,0.97256304]
[1767897715338,0.97491744,3119.4,3118.6,3.20656704]
[1767897715545,0.97491744,3119.4,3118.6,4.17913008]
[1767897716245,1.39297986,3119.4,3118.6,4.17913008]
[1767897716624,4.59873926,3119.4,3118.6,4.17913008]
[1767897716826,4.18067684,3119.4,3118.6,4.17913008]
[1767897717022,4.18067684,3119.4,3118.4,4.17928328]
[1767897717023,0.97291744,3119.3,3118.4,4.17928328]
[1767897717223,0.97291744,3119.3,3118.5,0.97256304]
[1767897717426,0.97291744,3119.2,3118.4,3.20672024]
[1767897717947,0.97291744,3119.2,3118.5,3.20665154]
[1767897718352,3.94451704,3119.3,3118.5,4.17921458]
[1767897718537,0.73864362,3119.3,3118.5,4.17921458]
[1767897718849,0.73864362,3119.3,3118.6,0.97256304]
[1767897719753,0.002,3119.7,3119.1,0.97256304]
[1767897720050,0.002,3119.7,3119.2,4.17851328]
[1767897721283,0.002,3119.7,3119.3,0.97256304]
[1767897721597,0.002,3119.7,3119.1,3.20600536]
[1767897722095,0.843,3119.7,3118.8,0.97356304]
[1767897722255,0.002,3119.7,3118.8,0.97356304]
[1767897722454,0.002,3119.7,3118.9,0.94835628]
[1767897722753,0.002,3119.7,3119.1,0.94835628]
[1767897722956,0.002,3120.2,3119.5,0.94835628]
[1767897724172,0.002,3120.2,3119.7,0.94835628]
[1767897725492,0.002,3120.2,3119.7,1.01562301]
[1767897725892,0.002,3120.6,3120.2,0.92141667]
[1767897726063,0.002,3121.0,3120.5,3.20461464]
[1767897726561,0.002,3121.0,3120.5,7.14902273]
[1767897727980,0.002,3121.0,3120.5,8.0704394]
[1767897728290,0.002,3121.0,3120.6,0.92141667]
[1767897728699,0.99885792,3121.7,3120.7,6.40881852]
[1767897728902,0.99885792,3121.6,3120.7,6.40881852]
[1767897729194,0.99885792,3121.6,3120.7,3.20440926]
[1767897729793,0.99885792,3121.6,3120.7,6.40881852]
[1767897730018,3.20340181,3121.7,3119.2,0.9886834]
[1767897730019,0.99885792,3121.0,3119.2,0.9886834]
[1767897730175,0.99885792,3120.8,3119.6,3.20549976]
[1767897730502,0.99885792,3120.6,3119.4,3.20572362]
[1767897730802,0.99885792,3120.4,3119.1,6.41210604]
[1767897731180,0.99885792,3120.4,3119.1,9.61815906]
[1767897731583,0.99885792,3120.4,3119.1,10.53957573]
[1767897732005,0.99885792,3120.4,3119.2,0.9886834]
[1767897732206,0.99885792,3120.4,3119.4,0.06726673]
[1767897732572,0.99885792,3120.8,3119.7,6.41087284]
[1767897732789,1.18284371,3120.8,3119.8,0.64781396]
[1767897733107,0.841,3120.9,3120.0,0.06726673]
[1767897733795,0.841,3120.9,3120.0,0.9886834]
[1767897733970,1.83985792,3120.9,3120.0,0.06726673]
[1767897734574,0.841,3120.9,3120.1,6.41005094]
[1767897734803,0.99885792,3121.2,3120.2,0.64773177]
[1767897735502,0.99885792,3121.3,3120.2,0.64773177]
[1767897735699,0.99885792,3121.3,3120.2,0.7149985]
[1767897736596,0.99885792,3121.2,3120.3,6.40964008]
[1767897736933,0.99885792,3121.2,3120.3,6.75710754]
[1767897737113,0.99885792,3121.2,3120.3,3.20482004]
[1767897738027,0.99885792,3121.2,3120.3,6.40964008]
[1767897738333,3.20370613,3121.4,3120.3,6.40964008]
[1767897738334,0.99885792,3121.3,3120.3,7.33105675]
[1767897738511,0.99885792,3121.3,3120.3,6.40964008]
[1767897740519,0.99885792,3121.5,3120.4,0.92141667]
[1767897740707,0.99885792,3122.4,3120.7,0.06726673]
[1767897740907,0.99885792,3122.2,3120.7,0.9886834]
[1767897741937,0.841,3122.3,3120.7,0.9886834]
[1767897741938,0.99885792,3122.0,3120.8,3.20430658]
[1767897743040,0.99885792,3121.8,3120.8,6.40861316]
[1767897743206,0.99885792,3121.8,3120.8,3.20430658]
[1767897743408,0.99885792,3121.7,3120.8,3.20430658]
[1767897744124,0.99885792,3121.7,3120.7,3.20437923]
[1767897745126,0.99885792,3121.5,3119.9,0.92141667]
[1767897745300,0.99885792,3121.5,3120.0,0.06726673]
[1767897745502,0.99885792,3121.5,3119.2,0.06726673]
[1767897745503,0.99885792,3119.2,3116.8,0.96166637]
[1767897745808,1.21175614,3119.8,3116.1,0.21656896]
[1767897745809,3.088759,3120.1,3117.9,0.92141667]
[1767897746110,0.99885791,3119.2,3118.2,0.92141667]
[1767897746718,0.99885791,3119.2,3118.2,4.12837749]
[1767897746915,0.99885791,3119.2,3118.2,0.92141667]
[1767897747124,0.99885791,3119.2,3118.3,0.841]
[1767897747307,0.99885791,3119.2,3118.4,0.17624167]
[1767897748719,0.92296562,3119.2,3118.4,1.09765834]
[1767897751265,3.20576649,3119.4,3118.4,1.09765834]
[1767897752057,0.66613144,3119.1,3118.4,1.09765834]
[1767897755532,0.66613144,3119.1,3118.4,4.30442069]
[1767897755857,0.66613144,3119.1,3118.5,0.51454207]
[1767897757862,0.66613144,3119.1,3118.5,1.50086745]
[1767897759000,0.66613144,3119.1,3118.6,0.841]
[1767897760596,0.66613144,3119.1,3118.7,0.001]
[1767897761594,0.94760472,3119.9,3118.7,0.98732538]
[1767897761764,4.15283565,3119.9,3118.9,0.98632538]
[1767897762893,0.94760472,3119.9,3118.9,0.98632538]
[1767897763091,4.15265325,3120.1,3118.9,0.98632538]
[1767897763487,7.35778102,3120.1,3118.9,0.98632538]
[1767897763686,8.09355912,3120.1,3119.0,0.98632538]
[1767897763899,8.09355912,3120.1,3119.1,0.841]
[1767897764398,8.09355912,3120.1,3119.1,1.82732538]
[1767897764988,6.9059988,3121.0,3119.3,0.98632538]
[1767897764989,0.94760472,3121.0,3119.3,0.98632538]
[1767897765895,0.94760472,3120.9,3119.4,3.20574469]
[1767897766205,0.94760472,3120.9,3119.3,0.98632538]
[1767897766509,0.94760472,3120.9,3119.4,0.98632538]
[1767897766684,0.94760472,3120.7,3119.5,0.98632538]
[1767897767008,0.94760472,3120.7,3119.6,0.841]
[1767897767577,9.61230372,3121.0,3119.7,0.98632538]
[1767897767578,0.94760472,3120.9,3119.7,0.98632538]
[1767897767775,0.94760472,3120.9,3119.6,4.3719988]
[1767897767776,0.94760472,3120.9,3119.9,0.98632538]
[1767897768091,4.15181278,3120.9,3119.9,0.98632538]
[1767897768418,4.15181278,3120.9,3120.0,1.37113451]
[1767897768581,4.15181278,3120.9,3120.1,0.841]
[1767897770708,0.94760472,3121.2,3120.1,1.82732538]
[1767897770912,0.94760472,3121.2,3120.2,1.82732538]
[1767897771098,0.94760472,3121.2,3120.3,0.841]
[1767897772319,0.002,3121.4,3120.3,0.841]
[1767897772320,0.94960472,3121.4,3120.4,0.98632538]
[1767897772888,0.002,3120.6,3120.4,4.19103421]
[1767897773428,4.15331559,3121.4,3120.4,3.20470883]
[1767897773429,0.002,3120.9,3120.4,3.20470883]
[1767897773586,0.002,3120.9,3120.4,4.19103421]
[1767897773806,0.002,3121.4,3120.5,0.98632538]
[1767897774012,0.002,3121.4,3120.6,0.51479762]
[1767897774629,0.002,3121.4,3120.7,0.98632538]
[1767897774841,0.002,3121.7,3121.0,0.98632538]
[1767897775415,0.94760472,3121.6,3120.9,6.40840782]
[1767897775621,0.94760472,3121.6,3120.9,3.20420391]
[1767897775833,0.94760472,3121.6,3121.0,0.41921455]
[1767897776856,0.002,3121.7,3121.1,3.20399859]
[1767897777140,0.002,3121.7,3121.3,0.98632538]
[1767897779731,0.002,3121.7,3121.3,4.19011521]
[1767897780328,0.002,3122.2,3121.5,0.98632538]
[1767897780531,0.002,3122.2,3121.5,1.37113451]
[1767897781636,0.002,3122.2,3121.6,4.18981077]
[1767897781835,0.002,3122.2,3121.7,0.841]
[1767897782341,0.002,3122.2,3121.8,0.96979874]
[1767897783058,0.96138528,3122.2,3120.7,0.96979874]
[1767897783270,0.96138528,3122.2,3121.1,3.20399497]
[1767897783566,0.96138528,3122.2,3121.2,0.841]
[1767897783882,7.36532998,3122.1,3121.0,4.17389998]
[1767897784048,0.736733,3122.0,3121.3,0.841]
[1767897785864,0.002,3122.2,3121.4,0.986979]
[1767897786039,0.002,3121.9,3121.4,0.841]
[1767897786863,0.002,3121.9,3121.5,0.841]
[1767897788564,0.002,3121.9,3121.1,4.19096588]
[1767897788748,0.002,3121.9,3121.2,5.03184029]
[1767897789471,0.002,3121.9,3121.3,0.841]
[1767897791993,0.002,3121.9,3121.0,0.986979]
[1767897792139,0.002,3121.9,3120.2,0.06091696]
[1767897792140,0.99192021,3121.7,3121.1,0.841]
[1767897792504,0.99192021,3121.5,3121.1,0.841]
[1767897796767,4.19555373,3121.5,3120.9,0.841]
[1767897798269,0.99192021,3121.4,3120.9,0.841]
[1767897799977,0.73984805,3121.6,3120.9,5.03217711]
[1767897800175,4.19535383,3121.7,3120.9,5.03217711]
[1767897800476,4.19535383,3121.7,3120.9,4.04519811]
[1767897804118,3.20333384,3121.8,3121.0,0.986979]
[1767897804609,4.19525405,3121.8,3121.0,0.986979]
[1767897806112,4.19525405,3121.8,3120.9,4.04519811]
[1767897806285,0.74004349,3121.7,3120.9,4.04519811]
[1767897806490,4.93537226,3121.7,3120.9,4.04519811]
[1767897807898,0.99192021,3121.6,3120.5,4.19156673]
[1767897808078,0.99192021,3121.6,3120.6,0.841]
[1767897808509,0.99192021,3121.5,3120.7,3.20435516]
[1767897808706,0.99192021,3121.5,3120.7,7.39574342]
[1767897808911,0.99192021,3121.5,3120.7,8.21941776]
[1767897811007,0.99192021,3121.7,3121.2,0.001]
[1767897811333,0.99192021,3121.6,3121.2,0.842]
[1767897812642,0.95398367,3121.8,3121.2,0.842]
[1767897812801,1.36990342,3121.7,3121.2,0.842]
[1767897813435,4.57337927,3121.7,3121.2,0.842]
[1767897813735,4.57337927,3121.7,3121.3,0.841]
[1767897814799,0.95398367,3121.6,3121.3,0.841]
[1767897815032,0.95398367,3121.6,3121.2,0.001]
[1767897815338,0.95398367,3121.6,3121.3,0.841]
[1767897815902,4.15748473,3121.6,3121.3,0.841]
[1767897816405,0.95398367,3121.5,3121.2,0.001]
[1767897816606,0.95398367,3121.5,3121.3,0.841]
[1767897817115,4.57334066,3121.7,3121.3,0.841]
[1767897817319,4.15727483,3121.8,3121.2,0.001]
[1767897817520,4.15727483,3121.8,3121.3,0.841]
[1767897818127,0.95398367,3121.7,3121.2,0.001]
[1767897818330,0.95398367,3121.7,3121.3,0.841]
[1767897819741,0.95598367,3121.9,3121.3,0.841]
[1767897821203,0.95598367,3121.9,3121.3,4.04477426]
[1767897821643,0.95598367,3121.9,3121.3,0.841]
[1767897821843,0.95398367,3121.8,3121.3,0.841]
[1767897822950,0.002,3121.9,3121.3,4.0447751]
[1767897823115,0.002,3121.9,3121.3,4.54891936]
[1767897823443,0.95598367,3121.9,3121.5,0.001]
[1767897824126,0.95398367,3121.8,3121.5,0.001]
[1767897824528,0.002,3121.9,3121.5,0.001]
[1767897825228,0.95598367,3121.9,3121.5,0.001]
[1767897826672,1.3718926,3121.9,3121.5,0.001]
[1767897827372,0.002,3121.9,3121.5,0.99666747]
[1767897827763,0.002,3121.9,3121.5,0.001]
[1767897829074,0.002,3121.9,3121.6,0.841]
[1767897830147,0.002,3121.9,3121.6,1.83666747]
[1767897830964,0.002,3121.9,3121.6,2.3407949]
[1767897831568,0.95598367,3121.9,3121.2,0.001]
[1767897831851,0.95598367,3121.9,3120.7,3.20435681]
[1767897832473,0.95398367,3121.6,3120.7,3.20435681]
[1767897832880,0.95398367,3121.6,3120.7,4.20002428]
[1767897836579,4.15757168,3121.5,3121.0,0.001]
[1767897837003,7.36115969,3121.5,3121.0,0.001]
[1767897837204,1.69029964,3121.4,3121.0,0.001]
[1767897837386,0.95398367,3121.4,3121.0,0.001]
[1767897839297,4.15774238,3121.4,3121.0,0.001]
[1767897839895,0.95398367,3121.4,3121.0,0.001]
[1767897840092,4.15767581,3121.4,3121.0,0.001]
[1767897840612,0.95398367,3121.4,3121.0,0.001]
[1767897841200,3.61965039,3121.4,3120.6,0.99566747]
[1767897841410,3.61965647,3121.4,3120.7,0.99566747]
[1767897841616,3.61965647,3121.4,3120.5,4.20023146]
[1767897841617,0.95398367,3121.3,3120.5,4.20023146]
[1767897842122,0.95398367,3121.3,3120.4,3.20467286]
[1767897842419,0.95398367,3121.3,3120.5,3.20461085]
[1767897842820,0.95398367,3121.3,3120.5,5.01369399]
[1767897844424,0.95398367,3121.3,3120.6,4.18999353]
[1767897844625,4.15779512,3121.3,3120.6,0.98549407]
[1767897849043,0.93571713,3121.0,3119.9,0.92165796]
[1767897849217,6.4076229,3121.3,3119.8,3.20527999]
[1767897849218,0.93571713,3120.7,3119.8,3.20527999]
[1767897849541,0.93571713,3120.7,3119.8,3.20528027]
[1767897849725,0.93571713,3120.7,3119.8,3.20533367]
[1767897849931,0.93571713,3120.7,3119.8,4.12699163]
[1767897850137,3.20411145,3121.0,3119.9,0.92165796]
[1767897850321,1.25612828,3120.9,3119.9,0.92165796]
[1767897851132,0.93571713,3121.1,3120.0,0.92165796]
[1767897851317,0.841,3121.2,3120.3,0.92165796]
[1767897851644,0.93571713,3121.1,3120.3,0.92165796]
[1767897852440,0.93571713,3121.1,3120.3,4.12642428]
[1767897852661,0.93571713,3121.1,3120.3,7.33124432]
[1767897852943,0.93571713,3121.1,3120.3,8.14846875]
[1767897854620,0.93571713,3121.1,3120.4,0.92165796]
[1767897855633,0.841,3121.2,3120.4,0.92165796]
[1767897856030,1.77671713,3121.2,3120.5,3.20461464]
[1767897856533,0.93571713,3121.1,3120.3,3.20473093]
[1767897856735,0.93571713,3121.0,3120.3,3.20473093]
[1767897856944,0.93571713,3121.0,3120.4,3.20470121]
[1767897857439,0.93571713,3121.5,3120.5,0.92165796]
[1767897857644,0.93571713,3121.5,3120.4,3.20470121]
[1767897857843,0.93571713,3121.3,3120.4,3.20470121]
[1767897858233,4.13961306,3121.2,3120.4,3.20470121]
[1767897859568,0.93571713,3121.1,3120.4,3.20470121]
[1767897862069,0.93571713,3121.1,3120.7,0.001]
[1767897862467,0.002,3121.0,3120.7,0.001]
[1767897862779,0.93571713,3120.9,3120.3,3.20481518]
[1767897863138,0.002,3121.0,3120.3,3.20481518]
[1767897863338,0.002,3121.0,3120.3,4.12647314]
[1767897864589,0.002,3121.0,3119.9,3.20520614]
[1767897864590,3.8128688,3120.5,3119.9,3.2051779]
[1767897864789,0.38128688,3120.4,3119.7,4.12707196]
[1767897864948,0.93571713,3120.5,3119.8,4.12694544]
[1767897865148,0.93571713,3120.8,3119.9,3.20522882]
[1767897866757,0.93571713,3120.7,3119.9,4.12687621]
[1767897867250,0.93571713,3120.7,3119.9,3.87687621]
[1767897868579,0.93571713,3120.7,3119.9,3.62687621]
[1767897869282,0.93571713,3120.7,3119.9,6.83210714]
[1767897869484,1.43382053,3120.7,3119.9,3.62687621]
[1767897869788,0.93571713,3120.6,3119.9,3.62687621]
[1767897870074,3.70251399,3120.7,3119.9,3.37687621]
[1767897870253,0.93571713,3120.6,3119.9,2.45521825]
[1767897871061,0.93571713,3120.6,3119.9,3.37687621]
[1767897871788,0.841,3120.9,3120.4,2.87831154]
[1767897872299,0.841,3120.9,3120.4,3.7999695]
[1767897873598,0.841,3120.9,3120.4,7.00466385]
[1767897873795,0.002,3121.0,3120.5,0.99064633]
[1767897875565,0.002,3121.0,3120.6,3.20451195]
[1767897875786,0.002,3121.0,3120.6,0.99064633]
[1767897878066,0.002,3121.0,3120.6,4.19511469]
[1767897878392,0.002,3121.0,3120.7,0.99064633]
[1767897879308,0.002,3121.6,3121.0,0.99064633]
[1767897879480,0.002,3121.6,3121.1,2.87831154]
[1767897879682,0.002,3121.6,3120.6,13.25330905]
[1767897879683,0.95424746,3121.2,3120.6,0.76150525]
[1767897879880,6.40898336,3121.6,3120.5,3.20453388]
[1767897879881,0.95424746,3121.0,3120.5,3.20453388]
[1767897880176,0.95424746,3121.0,3120.2,7.40149185]
[1767897880384,1.79524746,3121.1,3120.4,0.99064633]
[1767897881677,2.87831154,3120.7,3120.2,0.001]
[1767897881883,0.841,3120.6,3120.2,0.001]
[1767897883217,1.79524746,3120.6,3120.2,0.001]
[1767897883685,4.99978757,3120.6,3120.2,0.001]
[1767897884714,1.79524746,3120.6,3120.2,0.001]
[1767897885203,4.99978421,3120.6,3120.2,0.001]
[1767897885405,5.98864602,3120.6,3120.2,0.001]
[1767897886518,0.95424746,3120.2,3119.0,0.99064633]
[1767897886721,4.673559,3120.1,3119.0,0.99064633]
[1767897887027,7.87858447,3120.1,3119.2,0.99064633]
[1767897887226,0.95424746,3120.0,3119.1,3.59294462]
[1767897887927,0.95424746,3120.0,3119.1,6.79899764]
[1767897888413,0.95424746,3120.0,3119.1,9.67730918]
[1767897890736,0.95424746,3120.0,3119.3,0.001]
[1767897891033,0.841,3120.1,3119.3,0.99164633]
[1767897891235,0.841,3120.1,3119.4,3.20574469]
[1767897892335,0.841,3120.1,3119.4,4.19639102]
[1767897892731,0.841,3120.1,3119.5,0.99064633]
[1767897892933,0.841,3120.1,3119.6,0.99064633]
[1767897893234,0.841,3120.0,3119.6,0.99064633]
[1767897896334,0.841,3120.0,3119.4,1.73096766]
[1767897896532,0.841,3120.0,3119.4,4.19637683]